fUST/lending_fUST_20241113
["ID","MTS","AMOUNT","RATE_DAILY","PERIOD"]
[342137628,1731499870329,-500.0,0.00022465,2]
[342137629,1731499870341,-500.0,0.00022469,2]
[342137630,1731499870361,-500.0,0.00022469,2]
[342137631,1731499870375,-664.1,0.00022469,2]
[342137632,1731499870391,-500.0,0.00022469,2]
[342137633,1731499870403,-500.0,0.00022469,2]
[342137634,1731499870418,-500.0,0.00022469,2]
[342137635,1731499870433,-500.0,0.00022469,2]
[342137636,1731499870447,-500.0,0.00022469,2]
[342137637,1731499870462,-500.0,0.00022469,2]
[342137638,1731499870477,-500.0,0.00022469,2]
[342137639,1731499870495,-503.09158588,0.00022469,2]
[342137640,1731499870509,-500.0,0.00022469,2]
[342137641,1731499870524,-500.0,0.00022469,2]
[342137642,1731499870539,-500.0,0.00022469,2]
[342137643,1731499870553,-500.0,0.00022469,2]
[342137644,1731499870567,-444.66133794,0.00022469,2]
[342137645,1731499870581,-500.0,0.00022469,2]
[342137646,1731499870595,-500.0,0.00022469,2]
[342137647,1731499870610,-500.0,0.00022469,2]
[342137648,1731499870624,-500.0,0.00022469,2]
[342137649,1731499870637,-500.0,0.00022469,2]
[342137650,1731499870651,-500.0,0.00022469,2]
[342137651,1731499870666,-519.43,0.00022469,2]
[342137652,1731499870680,-500.0,0.00022469,2]
[342137653,1731499870694,-500.0,0.00022469,2]
[342137654,1731499870708,-500.0,0.00022469,2]
[342137655,1731499870722,-500.0,0.00022469,2]
[342137656,1731499870739,-500.0,0.00022469,2]
[342137657,1731499870753,-500.0,0.00022469,2]
[342137658,1731499870767,-500.0,0.00022469,2]
[342137659,1731499870781,-500.0,0.00022469,2]
[342137660,1731499870795,-500.0,0.00022469,2]
[342137661,1731499870810,-500.0,0.00022469,2]
[342137662,1731499870825,-500.0,0.00022521,2]
[342137663,1731499870838,-1300.83,0.00022521,2]
[342137664,1731499870852,-500.0,0.00022521,2]
[342137665,1731499870867,-210.44413104,0.00022521,2]
[342137666,1731499870882,-500.0,0.00022521,2]
[342137667,1731499870895,-500.0,0.00022521,2]
[342137668,1731499870911,-500.0,0.00022521,2]
[342137669,1731499870925,-500.0,0.00022521,2]
[342137670,1731499870940,-500.0,0.00022521,2]
[342137671,1731499870953,-784.96,0.00022536,2]
[342137672,1731499870967,-500.0,0.00022536,2]
[342137673,1731499870983,-500.0,0.00022536,2]
[342137674,1731499870997,-6930.32,0.00022536,2]
[342137675,1731499871107,-1605.83,0.00022536,2]
[342137676,1731499871117,-1070.28,0.00022536,2]
[342137677,1731499871127,-1111.56,0.00022536,2]
[342137678,1731499871137,-1195.06,0.00022536,2]
[342137679,1731499871146,-500.0,0.00022537,2]
[342137680,1731499871156,-433.51172679,0.00022537,2]
[342137681,1731499871165,-500.0,0.00022537,2]
[342137682,1731499871175,-514.25,0.00022537,2]
[342137683,1731499871184,-500.0,0.00022537,2]
[342137684,1731499871193,-500.0,0.00022537,2]
[342137685,1731499871203,-500.0,0.00022537,2]
[342137686,1731499871212,-500.0,0.00022537,2]
[342137687,1731499871221,-225.99342584,0.00022537,2]
[342137688,1731499871233,-500.0,0.00022537,2]
[342137689,1731499871245,-523.42,0.00022537,2]
[342137690,1731499871254,-500.0,0.00022537,2]
[342137691,1731499871263,-700.85,0.00022537,2]
[342137692,1731499871273,-500.0,0.00022537,2]
[342137693,1731499871282,-500.0,0.00022537,2]
[342137694,1731499871292,-500.0,0.00022537,2]
[342137695,1731499871301,-500.0,0.00022537,2]
[342137696,1731499871310,-500.0,0.00022537,2]
[342137697,1731499871319,-500.0,0.00022537,2]
[342137698,1731499871328,-500.0,0.00022537,2]
[342137699,1731499871337,-500.0,0.00022537,2]
[342137700,1731499871347,-500.0,0.00022537,2]
[342137701,1731499871356,-2334.98,0.00022537,2]
[342137702,1731499871366,-500.0,0.00022537,2]
[342137703,1731499871374,-565.83,0.00022537,2]
[342137704,1731499871384,-500.0,0.00022537,2]
[342137705,1731499871397,-590.92,0.00022537,2]
[342137706,1731499871407,-783.61,0.00022537,2]
[342137707,1731499871416,-500.0,0.00022537,2]
[342137708,1731499871427,-500.0,0.00022537,2]
[342137709,1731499871436,-3561.14,0.00022537,2]
[342137710,1731499871446,-500.0,0.00022537,2]
[342137711,1731499871455,-500.0,0.00022537,2]
[342137712,1731499871467,-500.0,0.00022537,2]
[342137713,1731499871476,-1692.17,0.00022537,2]
[342137714,1731499871486,-500.0,0.00022537,2]
[342137715,1731499871496,-500.0,0.00022537,2]
[342137716,1731499871504,-500.0,0.00022537,2]
[342137717,1731499871514,-500.0,0.00022537,2]
[342137718,1731499871523,-500.0,0.00022537,2]
[342137719,1731499871532,-350.21233346,0.00022537,2]
[342137720,1731499871543,-1603.1,0.00022537,2]
[342137721,1731499871552,-500.0,0.00022537,2]
[342137722,1731499871562,-217.79810441,0.00022537,2]
[342137723,1731499871571,-626.41,0.00022537,2]
[342137724,1731499871580,-564.51,0.00022537,2]
[342137725,1731499871590,-500.0,0.00022537,2]
[342137726,1731499871600,-500.0,0.00022537,2]
[342137727,1731499871609,-500.0,0.00022537,2]
[342137728,1731499871618,-500.0,0.00022537,2]
[342137729,1731499871627,-508.656144,0.00022537,2]
[342137730,1731499871636,-546.36,0.00022537,2]
[342137731,1731499871646,-500.0,0.00022537,2]
[342137732,1731499871654,-537.55,0.00022537,2]
[342137733,1731499871664,-500.0,0.00022537,2]
[342137734,1731499871674,-500.0,0.00022537,2]
[342137735,1731499871683,-500.0,0.00022537,2]
[342137736,1731499871692,-500.0,0.00022537,2]
[342137737,1731499871702,-877.96,0.00022537,2]
[342137738,1731499871711,-500.0,0.00022537,2]
[342137739,1731499871720,-541.14,0.00022537,2]
[342137740,1731499871729,-500.0,0.00022537,2]
[342137741,1731499871742,-500.0,0.00022538,2]
[342137742,1731499871751,-2139.54,0.00022538,2]
[342137743,1731499871760,-1045.64,0.00022538,2]
[342137744,1731499871769,-500.0,0.00022538,2]
[342137745,1731499871778,-500.0,0.00022538,2]
[342137746,1731499871787,-503.32605971,0.0002262,2]
[342137747,1731499871797,-500.0,0.0002262,2]
[342137748,1731499871806,-500.0,0.0002262,2]
[342137749,1731499871815,-513.65716717,0.0002262,2]
[342137750,1731499871824,-500.0,0.0002262,2]
[342137751,1731499871833,-500.0,0.0002262,2]
[342137752,1731499871842,-500.0,0.0002262,2]
[342137753,1731499871851,-500.0,0.0002262,2]
[342137754,1731499871859,-500.0,0.0002262,2]
[342137755,1731499871869,-500.0,0.0002262,2]
[342137756,1731499871878,-500.0,0.0002262,2]
[342137757,1731499871887,-502.09336249,0.0002262,2]
[342137758,1731499871896,-330.15948657,0.0002262,2]
[342137759,1731499871905,-500.0,0.0002262,2]
[342137760,1731499871914,-500.0,0.0002262,2]
[342137761,1731499871923,-500.0,0.0002262,2]
[342137762,1731499871932,-500.0,0.0002262,2]
[342137763,1731499871942,-500.0,0.0002262,2]
[342137764,1731499871951,-500.0,0.0002262,2]
[342137765,1731499871960,-500.0,0.0002262,2]
[342137766,1731499871969,-500.0,0.0002262,2]
[342137767,1731499871979,-500.0,0.0002262,2]
[342137768,1731499871990,-500.0,0.0002262,2]
[342137769,1731499871999,-500.0,0.0002262,2]
[342137770,1731499872008,-500.0,0.0002262,2]
[342137771,1731499872017,-500.0,0.0002262,2]
[342137772,1731499872037,-500.0,0.0002262,2]
[342137773,1731499872048,-500.0,0.0002262,2]
[342137774,1731499872058,-153.69405224,0.0002262,2]
[342137775,1731499872067,-509.38909833,0.0002262,2]
[342137776,1731499872077,-500.0,0.0002262,2]
[342137777,1731499872086,-500.0,0.0002262,2]
[342137778,1731499872096,-500.0,0.0002262,2]
[342137779,1731499872106,-500.0,0.0002262,2]
[342137780,1731499872116,-500.0,0.0002262,2]
[342137781,1731499872126,-500.0,0.0002262,2]
[342137782,1731499872136,-500.0,0.0002262,2]
[342137783,1731499872145,-500.0,0.0002262,2]
[342137784,1731499872155,-511.75183912,0.0002262,2]
[342137785,1731499872164,-500.0,0.0002262,2]
[342137786,1731499872174,-545.5,0.0002262,2]
[342137787,1731499872183,-500.0,0.0002262,2]
[342137788,1731499872193,-500.0,0.0002262,2]
[342137789,1731499872203,-500.0,0.0002262,2]
[342137790,1731499872213,-501.80909771,0.0002262,2]
[342137791,1731499872222,-879.56,0.0002262,2]
[342137792,1731499872233,-500.0,0.0002262,2]
[342137793,1731499872242,-500.0,0.0002262,2]
[342137794,1731499872252,-500.0,0.0002262,2]
[342137795,1731499872261,-500.0,0.0002262,2]
[342137796,1731499872272,-508.56920437,0.0002262,2]
[342137797,1731499872281,-500.0,0.0002262,2]
[342137798,1731499872291,-359.64722174,0.0002262,2]
[342137799,1731499872301,-517.03472592,0.0002262,2]
[342137800,1731499872310,-500.0,0.0002262,2]
[342137801,1731499872320,-501.39781729,0.00022622,2]
[342137802,1731499872329,-500.0,0.00022638,2]
[342137803,1731499872338,-500.0,0.00022638,2]
[342137804,1731499872348,-500.0,0.00022638,2]
[342137805,1731499872357,-500.0,0.00022638,2]
[342137806,1731499872366,-500.0,0.00022638,2]
[342137807,1731499872376,-933.01,0.00022638,2]
[342137808,1731499872386,-500.0,0.00022638,2]
[342137809,1731499872398,-500.0,0.00022638,2]
[342137810,1731499872407,-504.41,0.00022638,2]
[342137811,1731499872417,-607.97,0.00022638,2]
[342137812,1731499872426,-1115.11,0.00022638,2]
[342137813,1731499872437,-230.15962003,0.00022638,2]
[342137814,1731499872446,-864.63,0.00022638,2]
[342137815,1731499872455,-500.0,0.00022638,2]
[342137816,1731499872467,-500.0,0.00022638,2]
[342137817,1731499872477,-500.0,0.00022638,2]
[342137818,1731499872490,-500.0,0.00022638,2]
[342137819,1731499872499,-500.0,0.00022638,2]
[342137820,1731499872508,-412.76464447,0.00022638,2]
[342137821,1731499872518,-500.0,0.00022638,2]
[342137822,1731499872527,-500.0,0.00022638,2]
[342137823,1731499872537,-500.0,0.00022638,2]
[342137824,1731499872546,-500.0,0.00022638,2]
[342137825,1731499872555,-500.0,0.00022638,2]
[342137826,1731499872565,-500.0,0.00022638,2]
[342137827,1731499872574,-500.0,0.00022638,2]
[342137828,1731499872583,-500.0,0.00022667,2]
[342137829,1731499872592,-500.0,0.00022667,2]
[342137830,1731499872602,-504.88131074,0.00022667,2]
[342137831,1731499872611,-273.07056734,0.00022667,2]
[342137832,1731499872620,-516.39048526,0.00022667,2]
[342137833,1731499872630,-500.0,0.00022667,2]
[342137834,1731499872639,-500.0,0.00022667,2]
[342137835,1731499872648,-500.0,0.00022667,2]
[342137836,1731499872657,-500.0,0.00022667,2]
[342137837,1731499872666,-500.0,0.00022667,2]
[342137838,1731499872675,-1646.73009643,0.00022738,2]
[342137839,1731499872684,-500.0,0.00022739,2]
[342137840,1731499872693,-552.44794965,0.00022739,2]
[342137841,1731499872702,-211.53532007,0.00022739,2]
[342137842,1731499872711,-500.0,0.00022739,2]
[342137843,1731499872720,-500.0,0.00022743,2]
[342137844,1731499872730,-500.0,0.00022743,2]
[342137845,1731499872740,-664.1,0.00022743,2]
[342137846,1731499872749,-500.0,0.00022743,2]
[342137847,1731499872759,-500.0,0.00022743,2]
[342137848,1731499872768,-500.0,0.00022743,2]
[342137849,1731499872778,-536.62295588,0.00022743,2]
[342137850,1731499872787,-500.0,0.00022743,2]
[342137851,1731499872797,-500.0,0.00022743,2]
[342137852,1731499872806,-500.0,0.00022743,2]
[342137853,1731499872816,-500.0,0.00022743,2]
[342137854,1731499872825,-500.0,0.00022743,2]
[342137855,1731499872834,-500.0,0.00022743,2]
[342137856,1731499872843,-500.0,0.00022743,2]
[342137857,1731499872853,-500.0,0.00022743,2]
[342137858,1731499872862,-500.0,0.00022743,2]
[342137859,1731499872871,-500.0,0.00022743,2]
[342137860,1731499872881,-500.0,0.00022743,2]
[342137861,1731499872890,-500.0,0.00022743,2]
[342137862,1731499872899,-500.0,0.00022743,2]
[342137863,1731499872909,-519.43,0.00022743,2]
[342137864,1731499872919,-500.0,0.00022743,2]
[342137865,1731499872928,-500.0,0.00022743,2]
[342137866,1731499872938,-500.0,0.00022743,2]
[342137867,1731499872947,-356.5672428,0.00022743,2]
[342137868,1731499872956,-500.0,0.00022743,2]
[342137869,1731499872966,-527.16072871,0.00022743,2]
[342137870,1731499872975,-500.0,0.00022743,2]
[342137871,1731499872988,-500.0,0.00022743,2]
[342137872,1731499872997,-500.0,0.00022743,2]
[342137873,1731499873006,-500.0,0.00022743,2]
[342137874,1731499873015,-153.0,0.00022745,2]
[342137875,1731499873025,-500.0,0.00022795,2]
[342137876,1731499873034,-1300.83,0.00022795,2]
[342137877,1731499873043,-500.0,0.00022795,2]
[342137878,1731499873053,-500.0,0.00022795,2]
[342137879,1731499873062,-500.0,0.00022795,2]
[342137880,1731499873071,-500.0,0.00022795,2]
[342137881,1731499873081,-510.92798098,0.00022795,2]
[342137882,1731499873090,-500.0,0.00022795,2]
[342137883,1731499873100,-784.96,0.0002281,2]
[342137884,1731499873109,-500.0,0.0002281,2]
[342137885,1731499873119,-500.0,0.0002281,2]
[342137886,1731499873128,-6930.32,0.0002281,2]
[342137887,1731499873138,-1605.83,0.0002281,2]
[342137888,1731499873147,-1070.28,0.0002281,2]
[342137889,1731499873157,-1111.56,0.0002281,2]
[342137890,1731499873166,-1195.06,0.0002281,2]
[342137891,1731499873175,-500.0,0.00022811,2]
[342137892,1731499873184,-500.0,0.00022811,2]
[342137893,1731499873194,-514.25,0.00022811,2]
[342137894,1731499873318,-500.0,0.00022811,2]
[342137895,1731499873336,-500.0,0.00022811,2]
[342137896,1731499873345,-500.0,0.00022811,2]
[342137897,1731499873354,-500.0,0.00022811,2]
[342137898,1731499873364,-500.0,0.00022811,2]
[342137899,1731499873373,-523.42,0.00022811,2]
[342137900,1731499873383,-384.18582476,0.00022811,2]
[342137901,1731499873396,-700.85,0.00022811,2]
[342137902,1731499873405,-500.0,0.00022811,2]
[342137903,1731499873415,-500.0,0.00022811,2]
[342137904,1731499873424,-500.0,0.00022811,2]
[342137905,1731499873434,-500.0,0.00022811,2]
[342137906,1731499873443,-500.0,0.00022811,2]
[342137907,1731499873453,-500.0,0.00022811,2]
[342137908,1731499873463,-500.0,0.00022811,2]
[342137909,1731499873473,-228.10458045,0.00022811,2]
[342137910,1731499873482,-500.0,0.00022811,2]
[342137911,1731499873493,-2334.98,0.00022811,2]
[342137912,1731499873503,-500.0,0.00022811,2]
[342137913,1731499873512,-565.83,0.00022811,2]
[342137914,1731499873521,-500.0,0.00022811,2]
[342137915,1731499873530,-590.92,0.00022811,2]
[342137916,1731499873539,-783.61,0.00022811,2]
[342137917,1731499873549,-500.0,0.00022811,2]
[342137918,1731499873559,-500.0,0.00022811,2]
[342137919,1731499873569,-3561.14,0.00022811,2]
[342137920,1731499873578,-500.0,0.00022811,2]
[342137921,1731499873587,-500.0,0.00022811,2]
[342137922,1731499873596,-572.99179411,0.00022811,2]
[342137923,1731499873605,-1692.17,0.00022811,2]
[342137924,1731499873615,-500.0,0.00022811,2]
[342137925,1731499873624,-243.61676912,0.00022811,2]
[342137926,1731499873632,-500.0,0.00022811,2]
[342137927,1731499873642,-500.0,0.00022811,2]
[342137928,1731499873651,-625.01323634,0.00022811,2]
[342137929,1731499873660,-1603.1,0.00022811,2]
[342137930,1731499873670,-500.0,0.00022811,2]
[342137931,1731499873679,-626.41,0.00022811,2]
[342137932,1731499873688,-564.51,0.00022811,2]
[342137933,1731499873697,-500.0,0.00022811,2]
[342137934,1731499873707,-500.0,0.00022811,2]
[342137935,1731499873717,-500.0,0.00022811,2]
[342137936,1731499873726,-500.0,0.00022811,2]
[342137937,1731499873739,-546.36,0.00022811,2]
[342137938,1731499873748,-500.0,0.00022811,2]
[342137939,1731499873757,-537.55,0.00022811,2]
[342137940,1731499873766,-500.0,0.00022811,2]
[342137941,1731499873775,-500.0,0.00022811,2]
[342137942,1731499873784,-500.0,0.00022811,2]
[342137943,1731499873794,-500.0,0.00022811,2]
[342137944,1731499873803,-877.96,0.00022811,2]
[342137945,1731499873812,-326.82181987,0.00022811,2]
[342137946,1731499873821,-541.14,0.00022811,2]
[342137947,1731499873832,-500.0,0.00022811,2]
[342137948,1731499873841,-500.0,0.00022812,2]
[342137949,1731499873851,-2139.54,0.00022812,2]
[342137950,1731499873860,-1045.64,0.00022812,2]
[342137951,1731499873870,-500.0,0.00022812,2]
[342137952,1731499873879,-500.0,0.00022812,2]
[342137953,1731499873889,-500.0,0.00022894,2]
[342137954,1731499873898,-500.0,0.00022894,2]
[342137955,1731499873908,-500.0,0.00022894,2]
[342137956,1731499873917,-500.0,0.00022894,2]
[342137957,1731499873926,-500.0,0.00022894,2]
[342137958,1731499873936,-500.0,0.00022894,2]
[342137959,1731499873945,-500.0,0.00022894,2]
[342137960,1731499873954,-521.21393343,0.00022894,2]
[342137961,1731499873963,-500.0,0.00022894,2]
[342137962,1731499873972,-500.0,0.00022894,2]
[342137963,1731499873986,-500.0,0.00022894,2]
[342137964,1731499873995,-507.17603205,0.00022894,2]
[342137965,1731499874004,-500.0,0.00022894,2]
[342137966,1731499874014,-500.0,0.00022894,2]
[342137967,1731499874023,-177.71397246,0.00022894,2]
[342137968,1731499874032,-500.0,0.00022894,2]
[342137969,1731499874041,-500.0,0.00022894,2]
[342137970,1731499874051,-162.42047497,0.00022894,2]
[342137971,1731499874060,-500.0,0.00022894,2]
[342137972,1731499874069,-500.0,0.00022894,2]
[342137973,1731499874079,-630.59335535,0.00022894,2]
[342137974,1731499874088,-576.24436698,0.00022894,2]
[342137975,1731499874098,-500.0,0.00022894,2]
[342137976,1731499874107,-500.0,0.00022894,2]
[342137977,1731499874116,-500.0,0.00022894,2]
[342137978,1731499874126,-500.0,0.00022894,2]
[342137979,1731499874136,-500.0,0.00022894,2]
[342137980,1731499874145,-500.0,0.00022894,2]
[342137981,1731499874155,-500.0,0.00022894,2]
[342137982,1731499874164,-500.0,0.00022894,2]
[342137983,1731499874173,-500.0,0.00022894,2]
[342137984,1731499874182,-500.0,0.00022894,2]
[342137985,1731499874192,-500.0,0.00022894,2]
[342137986,1731499874201,-545.5,0.00022894,2]
[342137987,1731499874210,-500.0,0.00022894,2]
[342137988,1731499874220,-500.0,0.00022894,2]
[342137989,1731499874229,-500.0,0.00022894,2]
[342137990,1731499874240,-879.56,0.00022894,2]
[342137991,1731499874249,-500.0,0.00022894,2]
[342137992,1731499874259,-500.0,0.00022894,2]
[342137993,1731499874268,-500.0,0.00022894,2]
[342137994,1731499874277,-500.0,0.00022894,2]
[342137995,1731499874287,-500.0,0.00022894,2]
[342137996,1731499874296,-500.0,0.00022894,2]
[342137997,1731499874305,-528.0,0.000229,2]
[342137998,1731499874314,-500.0,0.00022912,2]
[342137999,1731499874324,-515.76283732,0.00022912,2]
[342138000,1731499874333,-500.0,0.00022912,2]
[342138001,1731499874342,-500.0,0.00022912,2]
[342138002,1731499874351,-500.0,0.00022912,2]
[342138003,1731499874360,-933.01,0.00022912,2]
[342138004,1731499874369,-500.0,0.00022912,2]
[342138005,1731499874379,-500.0,0.00022912,2]
[342138006,1731499874392,-504.41,0.00022912,2]
[342138007,1731499874401,-607.97,0.00022912,2]
[342138008,1731499874410,-1115.11,0.00022912,2]
[342138009,1731499874420,-864.63,0.00022912,2]
[342138010,1731499874430,-500.0,0.00022912,2]
[342138011,1731499874440,-500.0,0.00022912,2]
[342138012,1731499874449,-500.0,0.00022912,2]
[342138013,1731499874459,-500.0,0.00022912,2]
[342138014,1731499874472,-500.0,0.00022912,2]
[342138015,1731499874482,-500.0,0.00022912,2]
[342138016,1731499874497,-500.0,0.00022912,2]
[342138017,1731499874507,-500.0,0.00022912,2]
[342138018,1731499874517,-500.0,0.00022912,2]
[342138019,1731499874526,-500.0,0.00022912,2]
[342138020,1731499874535,-500.0,0.00022912,2]
[342138021,1731499874544,-354.17521488,0.00022912,2]
[342138022,1731499874554,-153.0,0.00022923,2]
[342138023,1731499874564,-153.0,0.00022923,2]
[342138024,1731499874573,-153.0,0.00022923,2]
[342138025,1731499874582,-153.0,0.00022923,2]
[342138026,1731499874591,-153.0,0.00022923,2]
[342138027,1731499874601,-153.0,0.00022923,2]
[342138028,1731499874611,-153.0,0.00022923,2]
[342138029,1731499874620,-153.0,0.00022923,2]
[342138030,1731499874630,-153.0,0.00022923,2]
[342138031,1731499874639,-153.0,0.00022923,2]
[342138032,1731499874648,-153.0,0.00022923,2]
[342138033,1731499874657,-153.0,0.00022923,2]
[342138034,1731499874667,-153.0,0.00022923,2]
[342138035,1731499874676,-153.0,0.00022923,2]
[342138036,1731499874685,-153.0,0.00022923,2]
[342138037,1731499874694,-500.0,0.00022941,2]
[342138038,1731499874704,-500.0,0.00022941,2]
[342138039,1731499874713,-500.0,0.00022941,2]
[342138040,1731499874722,-520.07784371,0.00022941,2]
[342138041,1731499874733,-500.0,0.00022941,2]
[342138042,1731499874742,-500.0,0.00022941,2]
[342138043,1731499874752,-500.0,0.00022941,2]
[342138044,1731499874761,-4913.88533995,0.00023,2]
[342138045,1731499874770,-120000.0,0.00023,3]
[342138046,1731499874779,-5790.32914254,0.00023,7]
[342138047,1731499874788,-159.0,0.00023,2]
[342138048,1731499874797,-501.17490259,0.00023013,2]
[342138049,1731499874806,-500.0,0.00023013,2]
[342138050,1731499874815,-800.06516276,0.00023015,2]
[342138051,1731499874825,-500.0,0.00023017,2]
[342138052,1731499874835,-500.0,0.00023017,2]
[342138053,1731499874844,-664.1,0.00023017,2]
[342138054,1731499874854,-500.0,0.00023017,2]
[342138055,1731499874863,-500.0,0.00023017,2]
[342138056,1731499874871,-500.0,0.00023017,2]
[342138057,1731499874880,-500.0,0.00023017,2]
[342138058,1731499874889,-500.0,0.00023017,2]
[342138059,1731499874898,-508.44175403,0.00023017,2]
[342138060,1731499874907,-500.0,0.00023017,2]
[342138061,1731499874917,-500.0,0.00023017,2]
[342138062,1731499874926,-618.09224128,0.00023017,2]
[342138063,1731499874935,-500.0,0.00023017,2]
[342138064,1731499874944,-500.0,0.00023017,2]
[342138065,1731499874953,-500.0,0.00023017,2]
[342138066,1731499874962,-500.0,0.00023017,2]
[342138067,1731499874971,-500.0,0.00023017,2]
[342138068,1731499874982,-500.0,0.00023017,2]
[342138069,1731499874992,-500.0,0.00023017,2]
[342138070,1731499875001,-519.43,0.00023017,2]
[342138071,1731499875011,-500.0,0.00023017,2]
[342138072,1731499875020,-500.0,0.00023017,2]
[342138073,1731499875029,-500.0,0.00023017,2]
[342138074,1731499875038,-500.0,0.00023017,2]
[342138075,1731499875048,-500.0,0.00023017,2]
[342138076,1731499875057,-500.0,0.00023017,2]
[342138077,1731499875066,-500.0,0.00023017,2]
[342138078,1731499875075,-500.0,0.00023017,2]
[342138079,1731499875084,-500.0,0.00023069,2]
[342138080,1731499875093,-1300.83,0.00023069,2]
[342138081,1731499875102,-500.0,0.00023069,2]
[342138082,1731499875110,-500.0,0.00023069,2]
[342138083,1731499875119,-500.0,0.00023069,2]
[342138084,1731499875129,-500.0,0.00023069,2]
[342138085,1731499875138,-500.0,0.00023069,2]
[342138086,1731499875147,-784.96,0.00023084,2]
[342138087,1731499875156,-523.45517035,0.00023084,2]
[342138088,1731499875166,-500.0,0.00023084,2]
[342138089,1731499875176,-6930.32,0.00023084,2]
[342138090,1731499875186,-1605.83,0.00023084,2]
[342138091,1731499875196,-1070.28,0.00023084,2]
[342138092,1731499875205,-1111.56,0.00023084,2]
[342138093,1731499875214,-1195.06,0.00023084,2]
[342138094,1731499875224,-500.0,0.00023085,2]
[342138095,1731499875235,-500.0,0.00023085,2]
[342138096,1731499875244,-514.25,0.00023085,2]
[342138097,1731499875253,-500.0,0.00023085,2]
[342138098,1731499875263,-500.0,0.00023085,2]
[342138099,1731499875272,-500.0,0.00023085,2]
[342138100,1731499875281,-500.0,0.00023085,2]
[342138101,1731499875290,-500.0,0.00023085,2]
[342138102,1731499875299,-523.42,0.00023085,2]
[342138103,1731499875308,-700.85,0.00023085,2]
[342138104,1731499875317,-500.0,0.00023085,2]
[342138105,1731499875327,-500.0,0.00023085,2]
[342138106,1731499875336,-500.0,0.00023085,2]
[342138107,1731499875344,-500.0,0.00023085,2]
[342138108,1731499875353,-500.0,0.00023085,2]
[342138109,1731499875363,-500.0,0.00023085,2]
[342138110,1731499875371,-500.0,0.00023085,2]
[342138111,1731499875381,-500.0,0.00023085,2]
[342138112,1731499875393,-2334.98,0.00023085,2]
[342138113,1731499875402,-500.0,0.00023085,2]
[342138114,1731499875411,-565.83,0.00023085,2]
[342138115,1731499875420,-500.0,0.00023085,2]
[342138116,1731499875430,-590.92,0.00023085,2]
[342138117,1731499875439,-783.61,0.00023085,2]
[342138118,1731499875449,-500.0,0.00023085,2]
[342138119,1731499875458,-500.0,0.00023085,2]
[342138120,1731499875469,-3561.14,0.00023085,2]
[342138121,1731499875479,-500.0,0.00023085,2]
[342138122,1731499875492,-500.0,0.00023085,2]
[342138123,1731499875501,-1692.17,0.00023085,2]
[342138124,1731499875510,-500.0,0.00023085,2]
[342138125,1731499875519,-500.0,0.00023085,2]
[342138126,1731499875528,-500.0,0.00023085,2]
[342138127,1731499875538,-1603.1,0.00023085,2]